Workbook

Sheet 方案
A1: 流量需求 | D1: 推广计划 | G1: 促销方案【五重好礼】
A2: 流量细项 | C2: 预计费用 | E2: 直通车 | F2: 钻展 | G2: 大礼1 | H2: 免 第一名成功付款享受免单，点击开团提醒
A3: 预计销量 | B3: 800 | D3: 活动前 | E3: 400 | F3: 1200 | G3: 大礼2 | H3: 减 第2-50名立即减300元
A4: 预计转化率 | B4: 0.1 | D4: 活动中 | E4: 400 | F4: 800 | G4: 大礼3 | H4: 减 第51-100名立即减200元
A5: 需求流量 | B5: =B3/B4 -> 8000 | D5: 累计 | E5: =SUM(E3:E4) -> 800 | F5: =SUM(F3:F4) -> 2000 | G5: 大礼4 | H5: 增 第100-500名立即减100元
A6: 预估活动流量 | B6: 5000 | C6: 50000 | G6: 大礼5 | H6: 五分好评截图返现20元（20字以上好评直接返现到支付宝）
A7: 店铺流量（自然搜索） | B7: 200
A8: 直通车（ppc 3元） | B8: 800 | C8: 2400
A9: 钻展(ppc 1元） | B9: 2000 | C9: 2000
C10: =SUM(C6:C9) -> 54400
B11: 预热 | H11: 活动当天
B12: 1 | C12: 2 | D12: 3 | E12: 4 | F12: 5 | G12: 6 | H12: 7 | I12: 累计
A13: 直通车 | B13: 50 | C13: 60 | D13: 60 | E13: 60 | F13: 70 | G13: 100 | H13: 400 | I13: =SUM(B13:H13) -> 800
A14: 钻展 | B14: 300 | C14: 180 | D14: 180 | E14: 220 | F14: 180 | G14: 200 | H14: 800 | I14: =SUM(B14:H14) -> 2060
B15: 测图 | E15: 砸点击率最高的图
A16: 成本核算
A17: 进价 | B17: 1999 | C17: 1999 | D17: 1999 | E17: 1999 | F17: 1999 | H17: 促销方案成本
A18: 售价 | B18: 2780 | C18: 2780 | D18: 2780 | E18: 2780 | F18: 2780 | H18: 促销方案成本 | I18: 单项成本 | J18: 备注
A19: 扣点（5%） | B19: =B18*0.05 -> 139 | C19: =C18*0.05 -> 139 | D19: 139 | E19: 139 | F19: =F18*0.05 -> 139 | H19: 大礼1（免） | I19: 2699
A20: 快递费用 | B20: 35 | C20: 35 | D20: 35 | E20: 35 | F20: 35 | H20: 大礼2（减） | I20: =49*300 -> 14700
A21: 好评返现 | B21: 20 | C21: 20 | D21: 20 | E21: 20 | F21: 20 | H21: 大礼3（减） | I21: =50*200 -> 10000
A22: 毛利额 | B22: =B18-B17-B19-B20-B21 -> 587 | C22: =C18-C17-C19-C20-C21 -> 587 | D22: 587 | E22: 587 | F22: =F18-F17-F19-F20-F21 -> 587 | H22: 大礼4（增） | I22: =400*100 -> 40000
A23: 估计销量 | B23: 100 | C23: 200 | D23: 300 | E23: 400 | F23: 500 | H23: 大礼5（返） | I23: =20*500 -> 10000 | J23: 可不计入
A24: 备货需求 | B24: 600 | C24: 600 | D24: 600 | E24: 600 | F24: 600 | I24: =SUM(I19:I22) -> 67399 | J24: 不含返现
A25: 预计销售额 | B25: =B23*B18 -> 278000 | C25: =C23*C18 -> 556000 | D25: 834000 | E25: 1112000 | F25: =F23*F18 -> 1390000
A26: 预计毛利额（不含广告促销费用） | B26: =B23*B22 -> 58700 | C26: =C23*C22 -> 117400 | D26: 176100 | E26: 234800 | F26: =F23*F22 -> 293500
A27: 促销方案成本 | B27: 67399 | C27: 67399 | D27: 67399 | E27: 67399 | F27: 67399
A28: 流量成本 | B28: 54400 | C28: 54400 | D28: 54400 | E28: 54400 | F28: 54400
A29: 预计毛利额（含广告促销费用） | B29: =B26-B27-B28 -> -63099 | C29: =C26-C27-C28 -> -4399 | D29: 54301 | E29: 113001 | F29: =F26-F27-F28 -> 171701
A30: 人员方案
B31: 活动前 | I31: 活动中
A32: 仓库 | B32: 活动款前3天备好货
B33: 前2天打包好300单独包，可直接贴面单
A34: 客服 | B34: 单品知识再次熟悉培训，店长负责培训
B35: 关联产品推荐技巧熟悉
B36: 售后安装知识考核
B37: 活动要点，好评返现等重要内容必须熟知流程
A38: 美工 | B38: 聚划算平台详情页页设计（三套方案）
B39: 聚划算平台主图设计（三套方案）
B40: 店铺内页二级页内页设计（2套方案）
B41: 店铺海报方案（5个方案）
B42: 推广直通车图（10个方案），点击率不低于1%
B43: 钻展图（15个方案）点击率不低于2%，投首焦
B44: 店铺首页（前三屏活动预热、点击进入活动二级页面）
B45: 店招设计（点击进入活动二级页面）
B46: 店铺关联产品设计
B47: 详情页侧栏预热方案（高度500）
A48: 推广 | B48: 直通车预热，提前一周预热，每日150uv进店
B49: 钻展预热，提前一周预热，进阶式投放，7天至少进店1000uv
B50: 每日数据监控，流量不足，广告费用补上

Sheet Sheet2
D4: 直通车出8个方案
D5: 钻展出15个方案 | F5: 创意cool
Q58: 出门要体面
Q59: 回家要干净

Sheet Sheet3
